fUSD/lending_fUSD_20251115
["ID","MTS","AMOUNT","RATE_DAILY","PERIOD"]
[394034933,1763205042454,-655.094,0.00039799,56]
[394034934,1763205042463,-174.0,0.00039871,90]
[394034935,1763205042471,-150.0,0.00039946,7]
[394034936,1763205042481,-300.0,0.0003996,2]
[394034937,1763205042490,-244.22,0.0004,30]
[394034939,1763205042499,-150.0,0.0004,7]
[394034940,1763205042507,-3016.17,0.0004,2]
[394034941,1763205042516,-500.0,0.0004,2]
[394034942,1763205042524,-300.0,0.0004,2]
[394034943,1763205042534,-662.45,0.0004,2]
[394034944,1763205042542,-1000.0,0.0004,60]
[394034946,1763205042551,-150.0,0.00040044,7]
[394034948,1763205042560,-371.99,0.00040056,2]
[394034949,1763205042568,-216.92063022,0.0004008,2]
[394034950,1763205042577,-24320.2949922,0.0004009,4]
[394034951,1763205042586,-800.0,0.000401,14]
[394034952,1763205042595,-2000.0,0.000401,2]
[394034953,1763205042604,-1100.0,0.000402,14]
[394034954,1763205042613,-698.13,0.00040236,30]
[394034956,1763205042622,-300.0,0.00040242,2]
[394034958,1763205042631,-300.0,0.0004026,2]
[394034959,1763205042639,-3016.17,0.00040273,2]
[394034960,1763205042648,-500.0,0.00040273,2]
[394034961,1763205042657,-300.0,0.00040273,2]
[394034962,1763205042665,-662.45,0.00040273,2]
[394034963,1763205042674,-1300.0,0.000403,14]
[394034964,1763205042684,-1603.0,0.00040301,2]
[394034965,1763205042694,-1002.09,0.0004032,120]
[394034966,1763205042705,-478.08,0.00040327,2]
[394034967,1763205042714,-291.00927523,0.00040333,7]
[394034968,1763205042724,-325.0066258,0.00040338,12]
[394034969,1763205042733,-325.0066258,0.00040338,12]
[394034970,1763205042744,-325.0066258,0.00040338,12]
[394034971,1763205042753,-325.0066258,0.00040338,12]
[394034972,1763205042762,-325.0066258,0.00040338,12]
[394034973,1763205042771,-325.0066258,0.00040338,12]
[394034974,1763205042781,-325.0066258,0.00040338,12]
[394034975,1763205042790,-325.0066258,0.00040338,12]
[394034976,1763205042800,-325.0066258,0.00040338,12]
[394034977,1763205042809,-325.0066258,0.00040338,12]
[394034978,1763205042818,-325.0066258,0.00040338,12]
[394034979,1763205042827,-325.0066258,0.00040338,12]
[394034980,1763205042836,-325.0066258,0.00040338,12]
[394034981,1763205042845,-325.0066258,0.00040338,12]
[394034982,1763205042854,-1000.0,0.00040346,7]
[394034983,1763205042863,-300.0,0.00040358,2]
[394034984,1763205042873,-256.91,0.00040359,14]
[394034985,1763205042882,-216.92063022,0.00040359,2]
[394034986,1763205042892,-300.0,0.0004036,2]
[394034987,1763205042901,-1000.0,0.00040365,7]
[394034988,1763205042910,-150.0,0.00040368,7]
[394034989,1763205042919,-300.0,0.00040375,2]
[394034990,1763205042928,-300.0,0.00040378,2]
[394034991,1763205042937,-200.0,0.000404,14]
[394034992,1763205042947,-478.16,0.00040411,2]
[394034993,1763205042955,-478.16,0.00040411,2]
[394034994,1763205042965,-478.16,0.00040411,2]
[394034995,1763205042974,-478.16,0.00040411,2]
[394034996,1763205042983,-478.16,0.00040411,2]
[394034997,1763205042992,-300.0,0.00040427,2]
[394034998,1763205043001,-300.0,0.00040451,2]
[394034999,1763205043010,-300.0,0.00040457,100]
[394035000,1763205043021,-150.0,0.00040459,7]
[394035001,1763205043031,-300.0,0.0004046,2]
[394035002,1763205043040,-300.0,0.0004047,2]
[394035003,1763205043049,-31024.0009497,0.00040483,4]
[394035004,1763205043061,-246.3701587,0.00040489,7]
[394035005,1763205043071,-1100.14,0.00040493,2]
[394035006,1763205043081,-550.1,0.00040493,2]
[394035007,1763205043090,-1100.2,0.00040493,2]
[394035008,1763205043100,-832.89,0.00040493,2]
[394035009,1763205043109,-550.1,0.00040493,2]
[394035010,1763205043119,-177.26,0.00040493,2]
[394035011,1763205043130,-151.21,0.00040493,2]
[394035012,1763205043139,-550.16,0.00040493,2]
[394035013,1763205043148,-550.16,0.00040493,2]
[394035014,1763205043157,-550.16,0.00040493,2]
[394035015,1763205043167,-550.16,0.00040493,2]
[394035016,1763205043176,-550.16,0.00040493,2]
[394035017,1763205043187,-1159.96,0.00040493,2]
[394035018,1763205043198,-550.1,0.00040493,2]
[394035019,1763205043208,-550.1,0.00040493,2]
[394035020,1763205043218,-150.0,0.00040498,7]
[394035021,1763205043228,-300.0,0.000405,2]
[394035022,1763205043237,-200.0,0.000405,14]
[394035023,1763205043247,-1000.0,0.000405,60]
[394035024,1763205043257,-300.0,0.00040514,2]
[394035025,1763205043268,-169.37,0.00040521,2]
[394035026,1763205043277,-169.37,0.00040521,2]
[394035027,1763205043286,-708.0,0.00040528,30]
[394035028,1763205043295,-3430.0,0.00040534,2]
[394035029,1763205043304,-300.0,0.00040535,2]
[394035030,1763205043313,-3016.17,0.00040547,2]
[394035031,1763205043321,-300.0,0.00040547,2]
[394035032,1763205043331,-662.45,0.00040547,2]
[394035033,1763205043340,-169.37,0.00040548,2]
[394035034,1763205043349,-169.37,0.00040548,2]
[394035035,1763205043358,-169.37,0.00040548,2]
[394035036,1763205043367,-301.16,0.00040548,2]
[394035037,1763205043377,-560.52,0.00040548,2]
[394035038,1763205043387,-169.37,0.00040548,2]
[394035039,1763205043397,-301.05,0.00040548,2]
[394035040,1763205043407,-1240.79,0.00040548,2]
[394035041,1763205043418,-302.36,0.00040548,2]
[394035042,1763205043427,-151.75,0.00040548,2]
[394035043,1763205043436,-150.0,0.00040548,2]
[394035044,1763205043445,-319.9,0.00040548,2]
[394035045,1763205043454,-416.5,0.00040548,2]
[394035046,1763205043463,-150.0,0.00040548,2]
[394035047,1763205043474,-550.16,0.00040548,2]
[394035048,1763205043483,-169.4,0.00040548,2]
[394035049,1763205043492,-150.0,0.00040548,2]
[394035050,1763205043501,-550.16,0.00040548,2]
[394035051,1763205043509,-169.4,0.00040548,2]
[394035052,1763205043518,-169.4,0.00040548,2]
[394035053,1763205043527,-550.16,0.00040548,2]
[394035054,1763205043536,-300.0,0.00040559,2]
[394035055,1763205043544,-300.0,0.00040591,2]
[394035056,1763205043553,-200.0,0.000406,14]
[394035057,1763205043562,-150.0,0.00040606,7]
[394035058,1763205043571,-24320.2949922,0.00040617,4]
[394035059,1763205043580,-1000.0,0.00040623,7]
[394035060,1763205043589,-150.0,0.00040627,7]
[394035061,1763205043598,-300.0,0.00040657,2]
[394035062,1763205043607,-300.0,0.00040659,2]
[394035063,1763205043615,-216.92063022,0.00040689,2]
[394035064,1763205043624,-300.0,0.00040693,2]
[394035065,1763205043633,-300.0,0.00040695,2]
[394035066,1763205043642,-200.0,0.000407,14]
[394035067,1763205043651,-300.0,0.00040702,2]
[394035068,1763205043660,-1000.0,0.00040705,7]
[394035069,1763205043669,-300.0,0.00040759,2]
[394035070,1763205043679,-300.0,0.00040764,2]
[394035071,1763205043688,-300.0,0.00040773,2]
[394035072,1763205043702,-1000.0,0.0004079,7]
[394035073,1763205043711,-300.0,0.00040798,2]
[394035074,1763205043721,-800.0,0.000408,14]
[394035075,1763205043731,-300.0,0.00040803,2]
[394035076,1763205043741,-300.0,0.00040805,2]
[394035077,1763205043751,-3016.17,0.00040821,2]
[394035078,1763205043761,-300.0,0.00040821,2]
[394035079,1763205043772,-662.45,0.00040821,2]
[394035080,1763205043783,-300.0,0.00040822,2]
[394035081,1763205043792,-300.0,0.00040824,2]
[394035082,1763205043802,-150.0,0.00040833,7]
[394035083,1763205043811,-300.0,0.00040839,2]
[394035084,1763205043820,-300.0,0.00040844,2]
[394035085,1763205043829,-300.0,0.00040852,2]
[394035086,1763205043838,-300.0,0.00040859,2]
[394035087,1763205043847,-300.0,0.00040859,2]
[394035088,1763205043856,-300.0,0.00040861,2]
[394035089,1763205043864,-300.0,0.00040869,2]
[394035090,1763205043874,-300.0,0.00040878,2]
[394035091,1763205043883,-300.0,0.00040893,2]
[394035092,1763205043892,-1000.0,0.00040896,7]
[394035093,1763205043901,-393.35056078,0.00040896,30]
[394035094,1763205043910,-300.0,0.00040901,2]
[394035095,1763205043919,-300.0,0.00040907,2]
[394035096,1763205043929,-300.0,0.00040908,2]
[394035097,1763205043938,-300.0,0.00040912,2]
[394035098,1763205043947,-300.0,0.00040926,2]
[394035099,1763205043956,-300.0,0.00040926,2]
[394035100,1763205043965,-1000.0,0.00040927,7]
[394035101,1763205043975,-300.0,0.00040929,2]
[394035102,1763205043984,-300.0,0.00040946,2]
[394035103,1763205043993,-300.0,0.00040959,2]
[394035104,1763205044003,-1000.0,0.00040966,7]
[394035105,1763205044012,-644.14075,0.0004098,7]
[394035106,1763205044022,-300.0,0.00040981,2]
[394035107,1763205044033,-300.0,0.00040987,2]
[394035108,1763205044043,-300.0,0.00040988,2]
[394035109,1763205044052,-300.0,0.00040989,2]
[394035110,1763205044061,-1000.0,0.00040992,7]
[394035111,1763205044071,-300.0,0.00040997,2]
[394035112,1763205044079,-180.3056003,0.00040998,8]
[394035113,1763205044088,-4000.76064393,0.00040998,15]
[394035114,1763205044097,-2036.17170562,0.00040998,15]
[394035115,1763205044106,-281.2,0.00040998,120]
[394035116,1763205044115,-164.03883507,0.00040998,120]
[394035117,1763205044124,-164.03883507,0.00040998,120]
[394035118,1763205044133,-164.03883507,0.00040998,120]
[394035119,1763205044142,-164.03,0.00040998,120]
[394035120,1763205044151,-158.85659551,0.00040998,120]
[394035121,1763205044160,-158.85659551,0.00040998,120]
[394035122,1763205044170,-158.85659551,0.00040998,120]
[394035123,1763205044180,-158.85659551,0.00040998,120]
[394035124,1763205044189,-158.85659551,0.00040998,120]
[394035125,1763205044199,-158.85,0.00040998,120]
[394035126,1763205044208,-158.85659551,0.00040998,120]
[394035127,1763205044217,-158.85659551,0.00040998,120]
[394035128,1763205044227,-158.85659551,0.00040998,120]
[394035129,1763205044392,-158.85659551,0.00040998,120]
[394035130,1763205044403,-158.85659551,0.00040998,120]
[394035131,1763205044413,-158.85659551,0.00040998,120]
[394035132,1763205044423,-158.85659551,0.00040998,120]
[394035133,1763205044432,-158.85659551,0.00040998,120]
[394035135,1763205044443,-158.85659551,0.00040998,120]
[394035136,1763205044452,-158.85659551,0.00040998,120]
[394035137,1763205044462,-158.85659551,0.00040998,120]
[394035138,1763205044471,-158.85659551,0.00040998,120]
[394035139,1763205044482,-158.85659551,0.00040998,120]
[394035140,1763205044493,-158.85,0.00040998,120]
[394035141,1763205044502,-153.17459054,0.00040998,120]
[394035142,1763205044512,-153.17459054,0.00040998,120]
[394035143,1763205044522,-153.17459054,0.00040998,120]
[394035144,1763205044532,-153.17459054,0.00040998,120]
[394035145,1763205044542,-153.17459054,0.00040998,120]
[394035146,1763205044552,-153.17459054,0.00040998,120]
[394035147,1763205044563,-153.17459054,0.00040998,120]
[394035148,1763205044572,-153.17459054,0.00040998,120]
[394035149,1763205044583,-153.17459054,0.00040998,120]
[394035150,1763205044593,-153.17,0.00040998,120]
[394035151,1763205044603,-178.70368897,0.00040998,120]
[394035152,1763205044613,-178.70368897,0.00040998,120]
[394035153,1763205044622,-178.70368897,0.00040998,120]
[394035154,1763205044632,-178.70368897,0.00040998,120]
[394035155,1763205044642,-178.70368897,0.00040998,120]
[394035156,1763205044651,-178.70368897,0.00040998,120]
[394035157,1763205044661,-178.70368897,0.00040998,120]
[394035158,1763205044671,-178.70368897,0.00040998,120]
[394035159,1763205044681,-178.70368897,0.00040998,120]
[394035160,1763205044691,-178.70368897,0.00040998,120]
[394035161,1763205044704,-178.70368897,0.00040998,120]
[394035162,1763205044714,-178.70368897,0.00040998,120]
[394035163,1763205044724,-178.70368897,0.00040998,120]
[394035164,1763205044734,-178.70368897,0.00040998,120]
[394035165,1763205044743,-178.70368897,0.00040998,120]
[394035166,1763205044754,-178.70368897,0.00040998,120]
[394035167,1763205044763,-178.70368897,0.00040998,120]
[394035168,1763205044772,-178.70368897,0.00040998,120]
[394035169,1763205044784,-178.70368897,0.00040998,120]
[394035170,1763205044793,-178.7,0.00040998,120]
[394035171,1763205044804,-162.5378106,0.00040999,15]
[394035172,1763205044814,-5050.0,0.00041,38]
[394035173,1763205044823,-478.96003305,0.00041,7]
[394035174,1763205044832,-478.96003305,0.00041,120]
[394035175,1763205044841,-1000.0,0.00041003,7]
[394035176,1763205044851,-300.0,0.00041004,2]
[394035177,1763205044860,-93072.0028492,0.00041009,4]
[394035178,1763205044869,-97281.179969,0.00041009,4]
[394035179,1763205044879,-300.0,0.00041013,2]
[394035180,1763205044888,-500.0,0.00041018,120]
[394035181,1763205044898,-4939.540508,0.00041019,2]
[394035182,1763205044907,-157740.9908011,0.00041019,2]
[394035183,1763205044917,-158.44903612,0.00041028,2]
[394035184,1763205044926,-300.0,0.00041036,2]
[394035185,1763205044935,-216.92063063,0.0004104,2]
[394035186,1763205044945,-300.0,0.00041047,2]
[394035187,1763205044954,-300.0,0.00041049,2]
[394035188,1763205044963,-300.0,0.00041053,2]
[394035189,1763205044972,-300.0,0.00041053,2]
[394035190,1763205044982,-151.0,0.00041057,60]
[394035191,1763205044992,-300.0,0.00041057,2]
[394035192,1763205045001,-300.0,0.00041059,2]
[394035193,1763205045017,-300.0,0.00041063,2]
[394035194,1763205045027,-300.0,0.00041065,2]
[394035195,1763205045037,-300.0,0.00041066,2]
[394035196,1763205045047,-300.0,0.0004107,2]
[394035197,1763205045057,-300.0,0.00041074,2]
[394035198,1763205045066,-300.0,0.00041078,2]
[394035199,1763205045076,-300.0,0.00041081,2]
[394035200,1763205045085,-500.0,0.00041087,120]
[394035201,1763205045094,-31024.0009497,0.00041088,4]
[394035202,1763205045104,-24320.2949922,0.00041088,4]
[394035203,1763205045114,-93072.0028492,0.00041088,4]
[394035204,1763205045124,-218882.65493,0.00041088,4]
[394035205,1763205045134,-300.0,0.0004109,2]
[394035206,1763205045144,-300.0,0.00041092,2]
[394035207,1763205045155,-300.0,0.00041095,2]
[394035208,1763205045165,-3016.17,0.00041095,2]
[394035209,1763205045175,-300.0,0.00041095,2]
[394035210,1763205045184,-662.45,0.00041095,2]
[394035211,1763205045194,-471.0,0.00041096,2]
[394035212,1763205045203,-644.14075,0.00041096,7]
[394035213,1763205045212,-150.0,0.00041096,2]
[394035214,1763205045221,-500.0,0.00041096,2]
[394035215,1763205045232,-165.71929386,0.00041096,60]
[394035216,1763205045241,-500.0,0.00041096,2]
[394035217,1763205045251,-500.0,0.00041096,2]
[394035218,1763205045260,-500.0,0.00041096,2]
[394035219,1763205045270,-500.0,0.00041096,2]
[394035220,1763205045279,-150.0,0.00041096,2]
[394035221,1763205045289,-500.0,0.00041096,2]
[394035222,1763205045299,-150.0,0.00041096,2]
[394035223,1763205045309,-500.0,0.00041097,120]
[394035224,1763205045318,-500.0,0.00041097,120]
[394035225,1763205045327,-500.0,0.00041097,120]
[394035226,1763205045336,-500.0,0.00041097,120]
[394035227,1763205045345,-500.0,0.00041097,120]
[394035228,1763205045355,-500.0,0.00041097,120]
[394035229,1763205045364,-500.0,0.00041097,120]
[394035230,1763205045373,-500.0,0.00041097,120]
[394035231,1763205045382,-500.0,0.00041097,120]
[394035232,1763205045392,-500.0,0.00041097,120]
[394035233,1763205045401,-500.0,0.00041097,120]
[394035234,1763205045411,-293.83053217,0.00041097,120]
[394035235,1763205045421,-300.0,0.00041097,30]
[394035236,1763205045430,-33211.70097215,0.00041098,27]
[394035237,1763205045440,-300.0,0.00041098,30]
[394035238,1763205045449,-200.0,0.00041098,7]
[394035239,1763205045458,-300.0,0.00041098,30]
[394035240,1763205045467,-1456890.45278485,0.00041098,60]
[394035241,1763205046025,-618.676,0.00021504,2]
[394035256,1763205265282,377.52,0.0001629,3]
[394035275,1763206054457,230.96,0.0002549,120]
[394035276,1763206054654,230.96,0.00027808,120]
[394035305,1763206115904,34594.28101958,0.00015,3]
[394035307,1763206126150,180.3056003,0.00017472,3]
[394035329,1763206232109,-524.075,0.00015974,2]
[394035330,1763206232119,-250.0,0.00016006,2]
[394035331,1763206232128,-250.0,0.00016091,2]
[394035332,1763206232139,-238.0445,0.000161,2]
[394035333,1763206232148,-716.0,0.00016199,2]
[394035334,1763206232158,-1000.0,0.000162,2]
[394035335,1763206232170,-4657.1355,0.000162,2]
[394035336,1763206232179,-95057.561,0.000162,2]
[394035337,1763206232189,-500.0,0.00016273,2]
[394035338,1763206232200,-455.22667891,0.00016299,2]
[394035339,1763206232213,-187.0849195,0.00016299,2]
[394035340,1763206232223,-500.0,0.00016299,2]
[394035341,1763206232233,-500.0,0.00016299,2]
[394035342,1763206232242,-500.0,0.00016299,2]
[394035343,1763206232252,-500.0,0.00016299,2]
[394035344,1763206232262,-500.0,0.00016299,2]
[394035345,1763206232272,-500.0,0.00016299,2]
[394035346,1763206232281,-500.0,0.00016299,2]
[394035347,1763206232290,-366.99815821,0.00016299,2]
[394035348,1763206232299,-355.44027075,0.00016299,2]
[394035349,1763206232310,-500.0,0.00016299,2]
[394035350,1763206232319,-500.0,0.00016299,2]
[394035351,1763206232328,-158.2038482,0.00016299,2]
[394035352,1763206232337,-500.0,0.00016299,2]
[394035353,1763206232346,-499.99999999,0.00016299,2]
[394035354,1763206232355,-1425.32019397,0.00016514,2]
[394035356,1763206232364,-1425.32019393,0.00016728,2]
[394035358,1763206232373,-2800.53245076,0.00016814,2]
[394035360,1763206232382,-1425.32019393,0.00016942,2]
[394035362,1763206232391,-62758.05221483,0.00017,2]
[394035363,1763206232402,-19915.86508121,0.00017,2]
[394035364,1763206232413,-35594.84232222,0.00017,2]
[394035365,1763206232426,-13164.98674678,0.00017,2]
[394035422,1763206239920,-162.5378106,0.00016955,2]
[394035424,1763206239929,-3243515.53859882,0.00017,2]
[394035477,1763206689295,4272.0,0.00030137,120]
[394035989,1763206872448,500.84,8.391e-05,2]
[394035990,1763206872647,500.84,8.832e-05,2]
[394035991,1763206872844,500.84,9.274e-05,2]
[394035992,1763206873044,500.84,9.716e-05,2]
[394035993,1763206873263,500.84,0.00010157,2]
[394035994,1763206873467,500.84,0.00010599,2]
[394035995,1763206873676,500.84,0.0001104,2]
[394035996,1763206873887,500.84,0.00011482,2]
[394035997,1763206874088,500.84,0.00011924,2]
[394035998,1763206874514,500.84,0.00012365,2]
[394035999,1763206874709,500.84,0.00012807,2]
[394036000,1763206874909,500.84,0.00013249,2]
[394036001,1763206875106,500.84,0.0001369,2]
[394036002,1763206875319,500.84,0.00014132,2]
[394036003,1763206875521,500.84,0.00014573,2]
[394036004,1763206875718,500.84,0.00015015,2]
[394036005,1763206875916,500.84,0.00015457,2]
[394036006,1763206912256,-419.26,0.00015876,2]
[394036007,1763206912278,-500.84,0.00015898,2]
[394036008,1763206912299,-79.9,0.00015999,2]
[394036009,1763206916919,-82.55105665,0.00015999,2]
[394036010,1763206916939,-851.81681194,0.00015999,2]
[394036012,1763207244895,300.0,0.000169,6]
[394036026,1763207437227,-846.0,0.00016099,2]
[394036027,1763207437237,-165.13886964,0.00016099,2]
[394036028,1763207437246,-162.5378106,0.000161,2]
[394036029,1763207437255,-997.72413576,0.000161,2]
[394036030,1763207437264,-1225.52033486,0.000161,2]
[394036031,1763207437275,-1014.88859335,0.000161,2]
[394036032,1763207437290,-5517.3265029,0.000161,2]
[394036033,1763207437301,-10442.07470698,0.000161,2]
[394036034,1763207437334,-2388.2175933,0.000161,2]
[394036035,1763207437345,-56641.84436861,0.000161,2]
[394036036,1763207437355,-500.0,0.00016173,2]
[394036037,1763207437365,-501.44245862,0.00016173,2]
[394036038,1763207437375,-151.0,0.0001619,2]
[394036039,1763207437384,-151.0,0.0001619,2]
[394036040,1763207437393,-151.0,0.0001619,2]
[394036041,1763207437404,-206.35089017,0.0001619,2]
[394036042,1763207437413,-150.0,0.00016198,2]
[394036043,1763207437422,-500.0,0.00016198,2]
[394036044,1763207437431,-519.3670811,0.00016199,2]
[394036045,1763207437441,-500.0,0.00016199,2]
[394036046,1763207437450,-502.56842496,0.00016199,2]
[394036047,1763207437464,-500.0,0.00016199,2]
[394036048,1763207437473,-500.0,0.00016199,2]
[394036049,1763207437482,-500.0,0.00016199,2]
[394036050,1763207437492,-464.11720793,0.00016199,2]
[394036051,1763207437502,-500.0,0.00016199,2]
[394036052,1763207437511,-500.0,0.00016199,2]
[394036053,1763207437521,-500.0,0.00016199,2]
[394036054,1763207437532,-500.0,0.00016199,2]
[394036055,1763207437542,-500.0,0.00016199,2]
[394036056,1763207437553,-500.0,0.00016199,2]
[394036057,1763207437562,-500.0,0.00016199,2]
[394036058,1763207437571,-572.73710273,0.00016199,2]
[394036060,1763207437581,-179.89664024,0.00016199,2]
[394036062,1763207437590,-500.0,0.00016199,2]
[394036064,1763207437599,-560.41093078,0.00016199,2]
[394036065,1763207437608,-505.24576912,0.00016199,2]
[394036066,1763207437616,-525.98928813,0.00016199,2]
[394036067,1763207437626,-1000.0,0.000162,2]
[394036068,1763207437634,-500.0,0.000162,2]
[394036069,1763207437643,-500.84,0.0001634,2]
[394036070,1763207437652,-250.0,0.00016376,2]
[394036071,1763207437661,-457.79,0.00016438,2]
[394036072,1763207437670,-3460.1,0.00016492,2]
[394036073,1763207437679,-372.75,0.00016509,2]
[394036074,1763207437687,-12234.03,0.00016514,2]
[394036075,1763207437696,-500.84,0.00016782,2]
[394036076,1763207437705,-403.98555378,0.00016817,2]
[394036077,1763207437714,-222.2113773,0.00016956,2]
[394036078,1763207437726,-151.0,0.0001699,2]
[394036079,1763207437736,-151.0,0.0001699,2]
[394036080,1763207437746,-500.0,0.00016999,2]
[394036081,1763207437757,-487.51681468,0.00016999,2]
[394036082,1763207437769,-12.48318532,0.00016999,2]
[394036083,1763207437779,-500.0,0.00016999,2]
[394036084,1763207437788,-8125.22798399,0.00017,2]
[394036085,1763207437799,-1023.11758796,0.00017,2]
[394036086,1763207437810,-19565.89382592,0.00017,2]
[394036087,1763207437820,-14251.8,0.00017,2]
[394036088,1763207437831,-4278.2265,0.00017,2]
[394036089,1763207437845,-73199.63626449,0.00017,2]
[394036090,1763207437854,-250.0,0.00017,2]
[394036091,1763207437863,-644.14075,0.00017,2]
[394036093,1763207437872,-214.29,0.00017115,2]
[394036094,1763207437881,-4656.51,0.00017179,2]
[394036095,1763207437890,-166.66,0.00017217,2]
[394036096,1763207437899,-150.0,0.00017243,2]
[394036097,1763207437908,-250.0,0.00017709,2]
[394036098,1763207437917,-250.0,0.00017709,2]
[394036099,1763207437926,-166.66,0.00017785,2]
[394036101,1763207437935,-700.0,0.000178,6]
[394036102,1763207437944,-500.0,0.00017808,2]
[394036103,1763207437953,-366.97143755,0.00017808,2]
[394036104,1763207437961,-1100.0,0.000179,6]
[394036105,1763207437970,-226.89489,0.00017936,2]
[394036106,1763207437979,-159.92173267,0.00017947,2]
[394036107,1763207437989,-331.61580868,0.00017973,2]
[394036108,1763207437998,-234.91511704,0.0001799,2]
[394036109,1763207438007,-1502.5338562,0.00017997,2]
[394036110,1763207438016,-151.0,0.00017997,2]
[394036111,1763207438025,-151.0,0.00017997,2]
[394036112,1763207438035,-151.0,0.00017997,2]
[394036113,1763207438045,-500.0,0.00017999,2]
[394036114,1763207438053,-500.0,0.00017999,2]
[394036115,1763207438062,-257.73915746,0.00017999,2]
[394036116,1763207438071,-500.0,0.00017999,2]
[394036117,1763207438080,-500.0,0.00017999,2]
[394036118,1763207438090,-585.84369105,0.00017999,2]
[394036119,1763207438102,-18620.46228763,0.00018,2]
[394036120,1763207438115,-697.44734142,0.00018,2]
[394036134,1763207440072,-3357.925,0.00018,2]
[394036141,1763207440176,-182.39450295,0.00017947,2]
[394036142,1763207440186,-1735.00549705,0.00018,2]
[394036173,1763207517312,65.63213141,0.00013699,2]
[394036174,1763207517344,631.26786859,0.00013699,2]
[394036178,1763208103900,-548.148,0.00015778,2]
[394036179,1763208124916,185.0,0.00030136,120]
[394036458,1763208274439,-300.0,0.00015999,2]
[394036459,1763208274459,-334.48408794,0.00016,2]
[394036460,1763208274480,-182.39450295,0.00016,2]
[394036461,1763208274500,-183.12140911,0.00016,2]
[394036462,1763208276016,-1000.0,0.00016,2]
[394036463,1763208277104,-1000.0,0.00016,2]
[394036464,1763208278273,-629.84403563,0.00016,2]
[394036465,1763208278294,-370.15596437,0.00016,2]
[394036466,1763208282412,-527.79575785,0.00016,2]
[394036467,1763208360963,182.39450295,0.00016,2]
[394036481,1763208426299,289.8097392,0.00016,2]
[394036491,1763208632339,-166.66,0.00015986,2]
[394036492,1763208632349,-158.34010413,0.00016,2]
[394036493,1763208632360,-360.00670665,0.00016,2]
[394036494,1763208632369,-879.19241655,0.00016,2]
[394036495,1763208632380,-509.5,0.00016,2]
[394036496,1763208632517,-777.17764128,0.00016,2]
[394036497,1763208632532,-365.7988424,0.00016,2]
[394036498,1763208632541,-500.0,0.00016073,2]
[394036499,1763208632550,-275.03,0.00016099,2]
[394036500,1763208632560,-421.0,0.00016099,2]
[394036501,1763208632569,-1000.0,0.000161,2]
[394036502,1763208632579,-500.0,0.00016199,2]
[394036503,1763208632588,-500.0,0.00016199,2]
[394036504,1763208632597,-418.12359549,0.00016199,2]
[394036505,1763208632606,-339.42818729,0.00016199,2]
[394036506,1763208632617,-160.57181271,0.00016199,2]
[394036507,1763208632626,-500.0,0.00016199,2]
[394036508,1763208632636,-500.0,0.00016199,2]
[394036509,1763208632645,-409.9993527,0.00016199,2]
[394036518,1763208634829,173.22,0.00024882,120]
[394036521,1763208638191,-90.0006473,0.00016199,2]
[394036522,1763208638202,-303.69032748,0.00016199,2]
[394036523,1763208638247,-196.30967252,0.00016199,2]
[394036524,1763208638258,-500.0,0.00016199,2]
[394036525,1763208638267,-516.31831006,0.00016199,2]